fUST/lending_fUST_20240707
["ID","MTS","AMOUNT","RATE_DAILY","PERIOD"]
[331407596,1720348258815,-3622.16,0.00047123,120]
[331407597,1720348258825,-500.0,0.00047123,120]
[331407598,1720348258834,-4420.68,0.00047123,120]
[331407599,1720348258844,-2729.24,0.00047123,120]
[331407600,1720348258854,-1418.25,0.00047123,120]
[331407601,1720348258863,-2088.03,0.00047123,120]
[331407602,1720348258873,-28020.05,0.00047123,120]
[331407603,1720348258882,-500.0,0.00047123,120]
[331407604,1720348258891,-16482.27,0.00047123,120]
[331407605,1720348258901,-1928.91,0.00047123,120]
[331407606,1720348258911,-500.0,0.00047123,120]
[331407607,1720348258920,-500.0,0.00047123,120]
[331407608,1720348258929,-1391.73,0.00047123,120]
[331407609,1720348258938,-980.42,0.00047123,120]
[331407610,1720348258947,-500.0,0.00047123,120]
[331407611,1720348258957,-717.05,0.00047123,60]
[331407612,1720348258966,-500.0,0.00047123,120]
[331407613,1720348258976,-1322.06,0.00047123,120]
[331407614,1720348258985,-1100.84,0.00047123,120]
[331407615,1720348258995,-544.99,0.00047123,120]
[331407616,1720348259004,-478.04872127,0.00047123,120]
[331407617,1720348259013,-1098.97,0.00047123,120]
[331407618,1720348259023,-1343.21,0.00047123,120]
[331407619,1720348259032,-500.0,0.00047123,120]
[331407620,1720348259041,-636.49470366,0.00047123,120]
[331407621,1720348259051,-500.0,0.00047123,120]
[331407622,1720348259060,-500.0,0.00047123,120]
[331407623,1720348259069,-933.38,0.00047123,120]
[331407624,1720348259079,-538.12,0.00047123,120]
[331407625,1720348259088,-500.0,0.00047123,120]
[331407626,1720348259098,-500.0,0.00047123,120]
[331407627,1720348259107,-500.0,0.00047123,120]
[331407628,1720348259117,-1587.98,0.00047123,120]
[331407629,1720348259126,-645.75,0.00047123,120]
[331407630,1720348259135,-1804.61,0.00047123,120]
[331407631,1720348259146,-1400.55,0.00047123,120]
[331407632,1720348259156,-764.78,0.00047123,120]
[331407633,1720348259168,-638.28,0.00047123,120]
[331407634,1720348259179,-500.0,0.00047123,120]
[331407635,1720348259188,-993.07,0.00047123,120]
[331407636,1720348259198,-1084.46,0.00047123,120]
[331407637,1720348259209,-2280.31,0.00047123,120]
[331407638,1720348259219,-1460.56,0.00047123,120]
[331407639,1720348259228,-879.0,0.00047123,120]
[331407640,1720348259238,-500.0,0.00047123,120]
[331407641,1720348259248,-1174.74,0.00047123,120]
[331407642,1720348259258,-506.68,0.00047123,120]
[331407643,1720348259268,-547.7,0.00047123,120]
[331407644,1720348259279,-199.24009072,0.00047123,120]
[331407645,1720348259288,-1275.26,0.00047123,120]
[331407646,1720348259297,-500.0,0.00047123,120]
[331407647,1720348259307,-620.89,0.00047123,120]
[331407648,1720348259316,-2777.24,0.00047123,120]
[331407649,1720348259325,-1229.15,0.00047123,120]
[331407650,1720348259335,-500.0,0.00047123,120]
[331407651,1720348259344,-620.32,0.00047123,120]
[331407652,1720348259354,-1466.22,0.00047123,120]
[331407653,1720348259364,-1166.72,0.00047123,120]
[331407654,1720348259374,-500.0,0.00047123,120]
[331407655,1720348259384,-252.54174793,0.00047123,120]
[331407656,1720348259394,-1741.41,0.00047123,120]
[331407657,1720348259404,-529.53,0.00047123,120]
[331407658,1720348259414,-500.0,0.00047123,120]
[331407659,1720348259424,-500.0,0.00047123,120]
[331407660,1720348259434,-500.0,0.00047123,120]
[331407661,1720348259443,-1189.37,0.00047123,120]
[331407662,1720348259453,-500.0,0.00047123,120]
[331407663,1720348259464,-500.0,0.00047123,120]
[331407664,1720348259474,-500.0,0.00047123,120]
[331407665,1720348259483,-844.82,0.00047123,120]
[331407666,1720348259493,-500.0,0.00047123,120]
[331407667,1720348259502,-500.0,0.00047123,120]
[331407668,1720348259512,-731.34,0.00047123,120]
[331407669,1720348259522,-1170.99,0.00047123,120]
[331407670,1720348259532,-990.62,0.00047123,120]
[331407671,1720348259542,-760.13,0.00047123,120]
[331407672,1720348259553,-1274.08,0.00047123,120]
[331407673,1720348259564,-500.0,0.00047123,120]
[331407674,1720348259574,-806.21,0.00047123,120]
[331407675,1720348259584,-500.0,0.00047123,120]
[331407676,1720348259594,-834.54,0.00047123,120]
[331407677,1720348259603,-886.97,0.00047123,120]
[331407678,1720348259613,-19633.38,0.00047123,120]
[331407679,1720348259622,-500.0,0.00047123,120]
[331407680,1720348259632,-500.0,0.00047123,120]
[331407681,1720348259641,-868.77,0.00047123,120]
[331407682,1720348259651,-1022.9,0.00047123,120]
[331407683,1720348259661,-997.77,0.00047123,120]
[331407684,1720348259671,-555.67,0.00047123,120]
[331407685,1720348259680,-500.0,0.00047123,120]
[331407686,1720348259690,-764.61,0.00047123,120]
[331407687,1720348259700,-500.0,0.00047123,120]
[331407688,1720348259710,-500.0,0.00047123,120]
[331407689,1720348259719,-500.0,0.00047123,120]
[331407690,1720348259729,-515.08,0.00047123,120]
[331407691,1720348259739,-1472.32,0.00047123,7]
[331407692,1720348259748,-539.31,0.00047123,120]
[331407693,1720348259759,-3272.31,0.00047123,120]
[331407694,1720348259768,-529.59,0.00047123,120]
[331407695,1720348259778,-2352.27,0.00047123,120]
[331407696,1720348259787,-777.74,0.00047123,120]
[331407697,1720348259798,-500.0,0.00047123,120]
[331407698,1720348259808,-500.0,0.00047123,120]
[331407699,1720348259817,-671.8,0.00047123,120]
[331407700,1720348259827,-2174.43,0.00047123,120]
[331407701,1720348259837,-6995.33,0.00047123,120]
[331407702,1720348259846,-1875.52,0.00047123,120]
[331407703,1720348259856,-1180.04,0.00047123,120]
[331407704,1720348259866,-500.6,0.00047123,120]
[331407705,1720348259876,-500.0,0.00047123,120]
[331407706,1720348259885,-1990.29,0.00047123,120]
[331407707,1720348259895,-500.0,0.00047123,120]
[331407708,1720348259905,-598.43403469,0.00047123,120]
[331407709,1720348259915,-500.0,0.00047123,120]
[331407710,1720348259924,-1014.07,0.00047123,120]
[331407711,1720348259934,-500.0,0.00047123,120]
[331407712,1720348259944,-668.62,0.00047123,120]
[331407713,1720348259953,-693.64,0.00047123,120]
[331407714,1720348259963,-67758.47,0.00047123,120]
[331407715,1720348259974,-1365.67,0.00047123,120]
[331407716,1720348259983,-627.2,0.00047123,120]
[331407717,1720348259993,-780.73,0.00047123,120]
[331407718,1720348260003,-800.11,0.00047123,120]
[331407719,1720348260012,-1034.58,0.00047123,120]
[331407720,1720348260022,-1285.7,0.00047123,120]
[331407721,1720348260032,-508.27,0.00047123,120]
[331407722,1720348260042,-2445.93,0.00047123,120]
[331407723,1720348260052,-1752.72,0.00047123,120]
[331407724,1720348260062,-4266.09,0.00047123,120]
[331407725,1720348260071,-4429.83,0.00047123,120]
[331407726,1720348260081,-500.0,0.00047123,120]
[331407727,1720348260090,-2704.38,0.00047123,120]
[331407728,1720348260100,-748.13,0.00047123,120]
[331407729,1720348260110,-1541.47,0.00047123,120]
[331407730,1720348260119,-500.0,0.00047123,120]
[331407731,1720348260129,-924.03,0.00047123,120]
[331407732,1720348260138,-500.0,0.00047123,120]
[331407733,1720348260148,-500.0,0.00047123,120]
[331407734,1720348260158,-844.26,0.00047123,120]
[331407735,1720348260169,-434.28040418,0.00047123,120]
[331407736,1720348260181,-12793.66,0.00047123,120]
[331407737,1720348260191,-618.83,0.00047123,120]
[331407738,1720348260200,-896.63,0.00047123,120]
[331407739,1720348260212,-7734.13,0.00047123,21]
[331407740,1720348260223,-6948.55,0.00047123,120]
[331407741,1720348260232,-2118.44,0.00047123,120]
[331407742,1720348260243,-1280.73,0.00047123,120]
[331407743,1720348260252,-500.0,0.00047123,120]
[331407744,1720348260262,-11105.94,0.00047123,120]
[331407745,1720348260271,-984.09,0.00047123,120]
[331407746,1720348260281,-500.0,0.00047123,120]
[331407747,1720348260291,-500.0,0.00047123,120]
[331407748,1720348260300,-772.24,0.00047123,120]
[331407749,1720348260310,-6036.83,0.00047123,120]
[331407750,1720348260320,-15042.94,0.00047123,120]
[331407751,1720348260330,-887.89,0.00047123,120]
[331407752,1720348260340,-500.0,0.00047123,120]
[331407753,1720348260351,-1240.73,0.00047123,120]
[331407754,1720348260361,-500.0,0.00047123,120]
[331407755,1720348260371,-2113.87,0.00047123,120]
[331407756,1720348260380,-688.3,0.00047123,120]
[331407757,1720348260390,-600.4,0.00047123,120]
[331407758,1720348260400,-4477.61,0.00047123,120]
[331407759,1720348260410,-1561.9,0.00047123,120]
[331407760,1720348260419,-5599.32,0.00047123,120]
[331407761,1720348260429,-626.43,0.00047123,120]
[331407762,1720348260439,-435.12631448,0.00047123,120]
[331407763,1720348260448,-2966.16,0.00047123,120]
[331407764,1720348260459,-757.52,0.00047123,120]
[331407765,1720348260468,-1087.62,0.00047123,120]
[331407766,1720348260478,-667.57,0.00047123,120]
[331407767,1720348260487,-500.0,0.00047123,120]
[331407768,1720348260497,-841.97,0.00047123,120]
[331407769,1720348260506,-1485.95,0.00047123,120]
[331407770,1720348260516,-500.0,0.00047123,120]
[331407771,1720348260526,-7224.58,0.00047123,120]
[331407772,1720348260535,-500.0,0.00047123,120]
[331407773,1720348260546,-2906.61,0.00047123,120]
[331407774,1720348260558,-778.38,0.00047123,120]
[331407775,1720348260568,-500.0,0.00047123,120]
[331407776,1720348260579,-641.22,0.00047123,120]
[331407777,1720348260589,-677.83,0.00047123,120]
[331407778,1720348260599,-950.32,0.00047123,120]
[331407779,1720348260609,-500.0,0.00047123,120]
[331407780,1720348260619,-791.08,0.00047123,120]
[331407781,1720348260629,-4029.35,0.00047123,120]
[331407782,1720348260639,-1139.2,0.00047123,120]
[331407783,1720348260649,-679.83,0.00047123,120]
[331407784,1720348260658,-500.0,0.00047123,120]
[331407785,1720348260668,-681.62,0.00047123,120]
[331407786,1720348260678,-841.38,0.00047123,120]
[331407787,1720348260688,-19997.62,0.00047123,120]
[331407788,1720348260698,-500.0,0.00047123,120]
[331407789,1720348260709,-500.0,0.00047123,120]
[331407790,1720348260719,-1478.86,0.00047123,120]
[331407791,1720348260729,-9165.57,0.00047123,120]
[331407792,1720348260738,-500.0,0.00047123,120]
[331407793,1720348260748,-500.0,0.00047123,120]
[331407794,1720348260758,-500.0,0.00047123,120]
[331407795,1720348260768,-500.0,0.00047123,120]
[331407796,1720348260778,-2498.75,0.00047123,120]
[331407797,1720348260788,-1179.34,0.00047123,120]
[331407798,1720348260798,-500.0,0.00047123,120]
[331407799,1720348260808,-1048.51,0.00047123,120]
[331407800,1720348260818,-2474.14,0.00047123,120]
[331407801,1720348260828,-500.0,0.00047123,120]
[331407802,1720348260838,-587.02,0.00047123,120]
[331407803,1720348260848,-500.0,0.00047123,120]
[331407804,1720348260857,-552.24042791,0.00047123,30]
[331407805,1720348260867,-500.0,0.00047123,120]
[331407806,1720348260877,-3741.22,0.00047123,120]
[331407807,1720348260887,-531.11,0.00047123,120]
[331407808,1720348260897,-780.81,0.00047123,120]
[331407809,1720348260907,-2000.34,0.00047123,120]
[331407810,1720348260917,-500.0,0.00047123,120]
[331407811,1720348260926,-500.0,0.00047123,120]
[331407812,1720348260936,-500.0,0.00047123,120]
[331407813,1720348260945,-343.27869272,0.00047123,120]
[331407814,1720348260956,-19236.53,0.00047123,120]
[331407815,1720348260967,-3413.69,0.00047123,120]
[331407816,1720348260978,-500.0,0.00047123,120]
[331407817,1720348260990,-1250.27,0.00047123,120]
[331407818,1720348261000,-500.0,0.00047123,120]
[331407819,1720348261010,-1121.56,0.00047123,120]
[331407820,1720348261020,-511.47918439,0.00047123,120]
[331407821,1720348261030,-500.0,0.00047123,120]
[331407822,1720348261040,-734.73,0.00047123,120]
[331407823,1720348261050,-1092.13,0.00047123,120]
[331407824,1720348261060,-1828.14,0.00047123,120]
[331407825,1720348261071,-500.0,0.00047123,120]
[331407826,1720348261081,-2409.9,0.00047123,120]
[331407827,1720348261092,-1905.14,0.00047123,120]
[331407828,1720348261103,-882.47,0.00047123,120]
[331407829,1720348261113,-2825.71,0.00047123,120]
[331407830,1720348261123,-500.0,0.00047123,120]
[331407831,1720348261134,-639.95,0.00047123,120]
[331407832,1720348261144,-1802.35,0.00047123,120]
[331407833,1720348261155,-500.0,0.00047123,120]
[331407834,1720348261174,-1266.29,0.00047123,120]
[331407835,1720348261194,-500.0,0.00047123,120]
[331407836,1720348261208,-500.0,0.00047123,120]
[331407837,1720348261219,-626.78,0.00047123,120]
[331407838,1720348261230,-500.0,0.00047123,120]
[331407839,1720348261240,-943.8,0.00047123,120]
[331407840,1720348261253,-500.0,0.00047123,120]
[331407841,1720348261263,-2629.96,0.00047123,120]
[331407842,1720348261274,-1281.3,0.00047123,120]
[331407843,1720348261284,-749.98,0.00047123,120]
[331407844,1720348261294,-500.0,0.00047123,120]
[331407845,1720348261304,-686.76,0.00047123,120]
[331407846,1720348261315,-1167.5,0.00047123,120]
[331407847,1720348261326,-818.05,0.00047123,120]
[331407848,1720348261335,-718.68,0.00047123,120]
[331407849,1720348261346,-2844.1,0.00047123,120]
[331407850,1720348261356,-500.0,0.00047123,21]
[331407851,1720348261366,-500.0,0.00047123,120]
[331407852,1720348261376,-500.0,0.00047123,120]
[331407853,1720348261386,-500.0,0.00047123,120]
[331407854,1720348261396,-23870.39,0.00047123,120]
[331407855,1720348261406,-730.55,0.00047123,120]
[331407856,1720348261416,-153.0,0.00047123,120]
[331407857,1720348261426,-153.0,0.00047123,120]
[331407858,1720348261436,-153.0,0.00047123,120]
[331407859,1720348261446,-153.0,0.00047123,120]
[331407860,1720348261456,-153.0,0.00047123,120]
[331407861,1720348261467,-153.0,0.00047123,120]
[331407862,1720348261479,-153.0,0.00047123,120]
[331407863,1720348261488,-153.0,0.00047123,120]
[331407864,1720348261499,-153.0,0.00047123,120]
[331407865,1720348261509,-153.0,0.00047123,120]
[331407866,1720348261519,-153.0,0.00047123,120]
[331407867,1720348261529,-153.0,0.00047123,120]
[331407868,1720348261540,-153.0,0.00047123,120]
[331407869,1720348261550,-153.0,0.00047123,120]
[331407870,1720348261562,-153.0,0.00047123,120]
[331407871,1720348261573,-153.0,0.00047123,120]
[331407872,1720348261583,-153.0,0.00047123,120]
[331407873,1720348261593,-153.0,0.00047123,120]
[331407874,1720348261603,-153.0,0.00047123,120]
[331407875,1720348261615,-153.0,0.00047123,120]
[331407876,1720348261829,-153.0,0.00047123,120]
[331407877,1720348261840,-153.0,0.00047123,120]
[331407878,1720348261850,-153.0,0.00047123,120]
[331407879,1720348261860,-153.0,0.00047123,120]
[331407880,1720348261869,-153.0,0.00047123,120]
[331407881,1720348261878,-153.0,0.00047123,120]
[331407882,1720348261887,-153.0,0.00047123,120]
[331407883,1720348261897,-153.0,0.00047123,120]
[331407884,1720348261906,-153.0,0.00047123,120]
[331407885,1720348261915,-153.0,0.00047123,120]
[331407886,1720348261924,-153.0,0.00047123,120]
[331407887,1720348261934,-153.0,0.00047123,120]
[331407888,1720348261943,-153.0,0.00047123,120]
[331407889,1720348261952,-153.0,0.00047123,120]
[331407890,1720348261964,-153.0,0.00047123,120]
[331407891,1720348261973,-153.0,0.00047123,120]
[331407892,1720348261982,-153.0,0.00047123,120]
[331407893,1720348261991,-153.0,0.00047123,120]
[331407894,1720348262000,-153.0,0.00047123,120]
[331407895,1720348262009,-153.0,0.00047123,120]
[331407896,1720348262018,-153.0,0.00047123,120]
[331407897,1720348262027,-153.0,0.00047123,120]
[331407898,1720348262036,-153.0,0.00047123,120]
[331407899,1720348262045,-153.0,0.00047123,120]
[331407900,1720348262054,-153.0,0.00047123,120]
[331407901,1720348262063,-153.0,0.00047123,120]
[331407902,1720348262073,-153.0,0.00047123,120]
[331407903,1720348262082,-153.0,0.00047123,120]
[331407904,1720348262093,-153.0,0.00047123,120]
[331407905,1720348262102,-153.0,0.00047123,120]
[331407906,1720348262111,-153.0,0.00047123,120]
[331407907,1720348262121,-153.0,0.00047123,120]
[331407908,1720348262130,-153.0,0.00047123,120]
[331407909,1720348262140,-153.0,0.00047123,120]
[331407910,1720348262149,-153.0,0.00047123,120]
[331407911,1720348262159,-153.0,0.00047123,120]
[331407912,1720348262174,-153.0,0.00047123,120]
[331407913,1720348262185,-153.0,0.00047123,120]
[331407914,1720348262195,-153.0,0.00047123,120]
[331407915,1720348262203,-153.0,0.00047123,120]
[331407916,1720348262216,-153.0,0.00047123,120]
[331407917,1720348262226,-452.8565937,0.00047196,30]
[331407918,1720348262236,-1637.17905575,0.00047198,30]
[331407919,1720348262245,-6366.89,0.0004726,120]
[331407920,1720348262255,-618.37780238,0.00047261,30]
[331407921,1720348262264,-200.0,0.00047333,120]
[331407922,1720348262274,-452.8565937,0.00047344,30]
[331407923,1720348262283,-1637.17905575,0.00047369,30]
[331407924,1720348262292,-452.8565937,0.00047382,30]
[331407925,1720348262302,-163.537782,0.00047392,2]
[331407926,1720348262311,-539.93,0.00047397,120]
[331407927,1720348262320,-863.71,0.00047397,120]
[331407928,1720348262330,-758.3,0.00047397,120]
[331407929,1720348262340,-2277.09,0.00047397,120]
[331407930,1720348262350,-500.0,0.00047397,120]
[331407931,1720348262359,-3622.16,0.00047397,120]
[331407932,1720348262368,-500.0,0.00047397,120]
[331407933,1720348262378,-4420.68,0.00047397,120]
[331407934,1720348262387,-2729.24,0.00047397,120]
[331407935,1720348262396,-1418.25,0.00047397,120]
[331407936,1720348262405,-2088.03,0.00047397,120]
[331407937,1720348262415,-28020.05,0.00047397,120]
[331407938,1720348262424,-500.0,0.00047397,120]
[331407939,1720348262433,-16482.27,0.00047397,120]
[331407940,1720348262442,-1928.91,0.00047397,120]
[331407941,1720348262452,-500.0,0.00047397,120]
[331407942,1720348262463,-560.13423497,0.00047397,120]
[331407943,1720348262472,-1391.73,0.00047397,120]
[331407944,1720348262481,-980.42,0.00047397,120]
[331407945,1720348262490,-500.0,0.00047397,120]
[331407946,1720348262499,-717.05,0.00047397,60]
[331407947,1720348262508,-500.0,0.00047397,120]
[331407948,1720348262518,-1322.06,0.00047397,120]
[331407949,1720348262527,-1100.84,0.00047397,120]
[331407950,1720348262536,-544.99,0.00047397,120]
[331407951,1720348262545,-1098.97,0.00047397,120]
[331407952,1720348262554,-1343.21,0.00047397,120]
[331407953,1720348262565,-500.0,0.00047397,120]
[331407954,1720348262574,-500.0,0.00047397,120]
[331407955,1720348262583,-500.0,0.00047397,120]
[331407956,1720348262592,-933.38,0.00047397,120]
[331407957,1720348262601,-538.12,0.00047397,120]
[331407958,1720348262610,-500.0,0.00047397,120]
[331407959,1720348262621,-500.0,0.00047397,120]
[331407960,1720348262630,-1587.98,0.00047397,120]
[331407961,1720348262639,-645.75,0.00047397,120]
[331407962,1720348262648,-1804.61,0.00047397,120]
[331407963,1720348262657,-1400.55,0.00047397,120]
[331407964,1720348262666,-764.78,0.00047397,120]
[331407965,1720348262675,-638.28,0.00047397,120]
[331407966,1720348262684,-500.0,0.00047397,120]
[331407967,1720348262694,-993.07,0.00047397,120]
[331407968,1720348262703,-1084.46,0.00047397,120]
[331407969,1720348262713,-2280.31,0.00047397,120]
[331407970,1720348262723,-1460.56,0.00047397,120]
[331407971,1720348262732,-879.0,0.00047397,120]
[331407972,1720348262741,-500.0,0.00047397,120]
[331407973,1720348262750,-1174.74,0.00047397,120]
[331407974,1720348262759,-506.68,0.00047397,120]
[331407975,1720348262769,-547.7,0.00047397,120]
[331407976,1720348262779,-1275.26,0.00047397,120]
[331407977,1720348262788,-323.65376532,0.00047397,120]
[331407978,1720348262797,-2777.24,0.00047397,120]
[331407979,1720348262807,-620.89,0.00047397,120]
[331407980,1720348262816,-1229.15,0.00047397,120]
[331407981,1720348262825,-500.0,0.00047397,120]
[331407982,1720348262834,-620.32,0.00047397,120]
[331407983,1720348262843,-1466.22,0.00047397,120]
[331407984,1720348262852,-1166.72,0.00047397,120]
[331407985,1720348262862,-633.40093676,0.00047397,120]
[331407986,1720348262871,-1741.41,0.00047397,120]
[331407987,1720348262880,-529.53,0.00047397,120]
[331407988,1720348262889,-500.0,0.00047397,120]
[331407989,1720348262899,-500.0,0.00047397,120]
[331407990,1720348262909,-500.0,0.00047397,120]
[331407991,1720348262918,-1189.37,0.00047397,120]
[331407992,1720348262927,-500.0,0.00047397,120]
[331407993,1720348262937,-262.68954389,0.00047397,120]
[331407994,1720348262946,-500.0,0.00047397,120]
[331407995,1720348262956,-844.82,0.00047397,120]
[331407996,1720348262967,-501.10129387,0.00047397,120]
[331407997,1720348262976,-199.61216583,0.00047397,120]
[331407998,1720348262986,-731.34,0.00047397,120]
[331407999,1720348262996,-1170.99,0.00047397,120]
[331408000,1720348263005,-990.62,0.00047397,120]
[331408001,1720348263014,-760.13,0.00047397,120]
[331408002,1720348263023,-1274.08,0.00047397,120]
[331408003,1720348263035,-500.0,0.00047397,120]
[331408004,1720348263044,-806.21,0.00047397,120]
[331408005,1720348263054,-500.0,0.00047397,120]
[331408006,1720348263064,-834.54,0.00047397,120]
[331408007,1720348263074,-886.97,0.00047397,120]
[331408008,1720348263085,-19633.38,0.00047397,120]
[331408009,1720348263095,-500.0,0.00047397,120]
[331408010,1720348263105,-500.0,0.00047397,120]
[331408011,1720348263114,-868.77,0.00047397,120]
[331408012,1720348263124,-1022.9,0.00047397,120]
[331408013,1720348263134,-997.77,0.00047397,120]
[331408014,1720348263145,-555.67,0.00047397,120]
[331408015,1720348263155,-214.18345939,0.00047397,120]
[331408016,1720348263164,-764.61,0.00047397,120]
[331408017,1720348263177,-500.0,0.00047397,120]
[331408018,1720348263187,-500.0,0.00047397,120]
[331408019,1720348263196,-500.0,0.00047397,120]
[331408020,1720348263206,-515.08,0.00047397,120]
[331408021,1720348263217,-1472.32,0.00047397,7]
[331408022,1720348263227,-539.31,0.00047397,120]
[331408023,1720348263236,-529.59,0.00047397,120]
[331408024,1720348263246,-2352.27,0.00047397,120]
[331408025,1720348263259,-777.74,0.00047397,120]
[331408026,1720348263270,-251.3113417,0.00047397,120]
[331408027,1720348263279,-500.0,0.00047397,120]
[331408028,1720348263289,-671.8,0.00047397,120]
[331408029,1720348263299,-2174.43,0.00047397,120]
[331408030,1720348263311,-1875.52,0.00047397,120]
[331408031,1720348263320,-1180.04,0.00047397,120]
[331408032,1720348263331,-500.6,0.00047397,120]
[331408033,1720348263341,-500.0,0.00047397,120]
[331408034,1720348263351,-1990.29,0.00047397,120]
[331408035,1720348263362,-500.0,0.00047397,120]
[331408036,1720348263371,-6995.33,0.00047397,120]
[331408037,1720348263381,-500.0,0.00047397,120]
[331408038,1720348263390,-1014.07,0.00047397,120]
[331408039,1720348263401,-500.0,0.00047397,120]
[331408040,1720348263411,-668.62,0.00047397,120]
[331408041,1720348263421,-693.64,0.00047397,120]
[331408042,1720348263431,-67758.47,0.00047397,120]
[331408043,1720348263440,-1365.67,0.00047397,120]
[331408044,1720348263450,-627.2,0.00047397,120]
[331408045,1720348263460,-780.73,0.00047397,120]
[331408046,1720348263470,-800.11,0.00047397,120]
[331408047,1720348263479,-1034.58,0.00047397,120]
[331408048,1720348263489,-1285.7,0.00047397,120]
[331408049,1720348263499,-508.27,0.00047397,120]
[331408050,1720348263508,-2445.93,0.00047397,120]
[331408051,1720348263518,-1752.72,0.00047397,120]
[331408052,1720348263527,-4266.09,0.00047397,120]
[331408053,1720348263536,-4429.83,0.00047397,120]
[331408054,1720348263546,-500.0,0.00047397,120]
[331408055,1720348263556,-2704.38,0.00047397,120]
[331408056,1720348263567,-748.13,0.00047397,120]
[331408057,1720348263577,-1541.47,0.00047397,120]
[331408058,1720348263588,-591.68624609,0.00047397,120]
[331408059,1720348263600,-924.03,0.00047397,120]
[331408060,1720348263609,-386.33441101,0.00047397,120]
[331408061,1720348263619,-500.0,0.00047397,120]
[331408062,1720348263629,-844.26,0.00047397,120]
[331408063,1720348263644,-12793.66,0.00047397,120]
[331408064,1720348263653,-618.83,0.00047397,120]
[331408065,1720348263662,-896.63,0.00047397,120]
[331408066,1720348263672,-7734.13,0.00047397,21]
[331408067,1720348263682,-6948.55,0.00047397,120]
[331408068,1720348263692,-2118.44,0.00047397,120]
[331408069,1720348263701,-1280.73,0.00047397,120]
[331408070,1720348263712,-600.48197626,0.00047397,120]
[331408071,1720348263722,-11105.94,0.00047397,120]
[331408072,1720348263731,-984.09,0.00047397,120]
[331408073,1720348263741,-500.0,0.00047397,120]
[331408074,1720348263752,-500.0,0.00047397,120]
[331408075,1720348263766,-772.24,0.00047397,120]
[331408076,1720348263775,-6036.83,0.00047397,120]
[331408077,1720348263785,-15042.94,0.00047397,120]
[331408078,1720348263795,-887.89,0.00047397,120]
[331408079,1720348263805,-500.0,0.00047397,120]
[331408080,1720348263816,-1240.73,0.00047397,120]
[331408081,1720348263826,-500.0,0.00047397,120]
[331408082,1720348263836,-2113.87,0.00047397,120]
[331408083,1720348263845,-688.3,0.00047397,120]
[331408084,1720348263855,-600.4,0.00047397,120]
[331408085,1720348263865,-4477.61,0.00047397,120]
[331408086,1720348263874,-1561.9,0.00047397,120]
[331408087,1720348263884,-5599.32,0.00047397,120]
[331408088,1720348263894,-626.43,0.00047397,120]
[331408089,1720348263904,-2966.16,0.00047397,120]
[331408090,1720348263913,-757.52,0.00047397,120]
[331408091,1720348263922,-1087.62,0.00047397,120]
[331408092,1720348263932,-667.57,0.00047397,120]
[331408093,1720348263942,-500.0,0.00047397,120]
[331408094,1720348263951,-841.97,0.00047397,120]
[331408095,1720348263962,-1485.95,0.00047397,120]